bitfinex/quotes_BTCUSD_20240815
["timestamp","ask_amount","ask_price","bid_price","bid_amount"]
[1723728196956,0.10064143,59055.0,59054.0,0.0778]
[1723728197163,0.35134067,59055.0,59054.0,0.0778]
[1723728197373,0.25069924,59055.0,59054.0,0.0778]
[1723728197589,0.19846308,59055.0,59050.0,0.0788]
[1723728197794,0.17330864,59054.0,59050.0,0.0788]
[1723728198660,0.123,59054.0,59050.0,0.0788]
[1723728198872,0.023,59054.0,59050.0,0.0788]
[1723728199750,0.023,59055.0,59050.0,0.0788]
[1723728200186,0.023,59055.0,59051.0,1.2579]
[1723728200451,0.1,59058.0,59056.0,0.0812]
[1723728200662,0.1,59059.0,59056.0,0.0812]
[1723728200869,0.01009134,59058.0,59056.0,0.0812]
[1723728201071,0.05030864,59062.0,59056.0,0.0812]
[1723728201488,0.15030864,59063.0,59056.0,0.0812]
[1723728202334,0.014,59068.0,59052.0,0.0648]
[1723728202335,0.05030864,59067.0,59063.0,0.0832]
[1723728202549,0.014,59068.0,59064.0,0.0646]
[1723728202754,0.014,59068.0,59065.0,0.0832]
[1723728202755,0.01003602,59067.0,59065.0,0.0832]
[1723728202997,0.014,59068.0,59065.0,0.0832]
[1723728203203,0.0660524,59067.0,59065.0,0.0832]
[1723728203414,0.06595836,59067.0,59065.0,0.0832]
[1723728203636,0.023,59066.0,59065.0,0.0832]
[1723728203849,0.1732026,59066.0,59065.0,0.0832]
[1723728204280,0.1732026,59066.0,59065.0,0.0842]
[1723728204493,0.1732026,59066.0,59065.0,0.0832]
[1723728204911,0.0832026,59066.0,59065.0,0.0842]
[1723728205751,0.033,59066.0,59065.0,0.0842]
[1723728206369,0.01,59066.0,59065.0,0.085025]
[1723728207529,0.0672026,59066.0,59065.0,0.085025]
[1723728207761,0.117,59066.0,59065.0,0.085025]
[1723728208185,0.1902169,59066.0,59065.0,0.25433]
[1723728208400,0.017,59066.0,59065.0,0.83099454]
[1723728208624,0.017,59066.0,59065.0,1.16960454]
[1723728208845,0.017,59066.0,59065.0,1.32042619]
[1723728209468,0.017,59066.0,59065.0,1.16960454]
[1723728209825,0.017,59066.0,59065.0,2.76611454]
[1723728210056,0.007,59066.0,59065.0,2.76511454]
[1723728210475,0.00090751,59068.0,59067.0,0.846495]
[1723728210689,0.00090751,59068.0,59067.0,2.35294954]
[1723728211580,0.00090751,59068.0,59067.0,1.504199]
[1723728211787,0.00090751,59068.0,59067.0,1.842797]
[1723728211995,0.00090751,59068.0,59067.0,2.247295]
[1723728212200,0.00190751,59068.0,59067.0,2.253295]
[1723728212412,0.00190751,59068.0,59067.0,1.50554754]
[1723728213043,0.00190751,59068.0,59067.0,1.16694954]
[1723728213454,0.00190751,59068.0,59067.0,1.50554754]
[1723728214299,0.00290751,59068.0,59067.0,1.51154754]
[1723728215554,0.00290751,59068.0,59067.0,1.17294954]
[1723728215969,0.00270377,59068.0,59067.0,1.68310208]
[1723728217215,0.00270377,59068.0,59067.0,0.012]
[1723728217425,0.59636904,59068.0,59067.0,0.012]
[1723728217633,0.84968255,59068.0,59067.0,0.012]
[1723728217847,1.32378213,59068.0,59067.0,0.012]
[1723728218072,1.78111042,59068.0,59067.0,0.012]
[1723728218481,1.78111042,59068.0,59065.0,0.000825]
[1723728218482,0.169314,59062.0,59057.0,0.0779]
[1723728218691,0.05015244,59059.0,59057.0,0.0779]
[1723728218898,0.05015244,59060.0,59057.0,0.0779]
[1723728219126,0.05015244,59059.0,59057.0,0.0779]
[1723728219315,0.07315244,59059.0,59057.0,0.0779]
[1723728219526,0.05015244,59058.0,59057.0,0.1377]
[1723728219731,0.1,59058.0,59057.0,0.1377]
[1723728219923,0.023,59059.0,59057.0,0.1377]
[1723728220044,0.023,59060.0,59057.0,0.1377]
[1723728220492,0.023,59060.0,59058.0,0.0773]
[1723728220697,0.1,59061.0,59058.0,0.0773]
[1723728220902,0.05016337,59062.0,59058.0,0.0773]
[1723728221097,0.023,59061.0,59058.0,0.0773]
[1723728221273,0.006,59059.0,59058.0,0.0773]
[1723728221906,0.023,59061.0,59058.0,0.0773]
[1723728222128,0.01030434,59063.0,59058.0,0.0773]
[1723728222129,0.023,59062.0,59058.0,0.0773]
[1723728222443,0.032,59062.0,59058.0,0.0783]
[1723728222687,0.011,59061.0,59058.0,0.0783]
[1723728222890,0.011,59061.0,59060.0,0.169319]
[1723728223101,0.011,59061.0,59060.0,0.75911154]
[1723728223903,0.011,59061.0,59060.0,1.09774954]
[1723728224476,0.011,59061.0,59060.0,2.75478754]
[1723728224672,0.011,59061.0,59060.0,2.79838438]
[1723728224880,0.011,59061.0,59060.0,2.75478754]
[1723728225078,0.00070377,59068.0,59067.0,0.169299]
[1723728225280,0.00070377,59068.0,59067.0,0.246599]
[1723728225986,0.00070377,59068.0,59067.0,0.0773]
[1723728226155,0.00070377,59068.0,59067.0,0.246599]
[1723728226968,0.00070377,59068.0,59067.0,0.248599]
[1723728227518,0.00070377,59068.0,59067.0,0.653797]
[1723728228875,0.00070377,59068.0,59067.0,0.315199]
[1723728229139,0.00070377,59068.0,59067.0,0.992395]
[1723728229554,0.00070377,59068.0,59067.0,0.653797]
[1723728229899,0.00070377,59068.0,59067.0,1.911697]
[1723728230111,0.00070377,59068.0,59067.0,1.573099]
[1723728230313,0.00070377,59068.0,59067.0,1.4038]
[1723728231682,0.00070377,59068.0,59067.0,1.3998]
[1723728231929,0.00070377,59068.0,59067.0,1.3978]
[1723728232116,0.00070377,59068.0,59067.0,1.3988]
[1723728232541,0.00170377,59068.0,59067.0,1.3978]
[1723728233222,0.00170377,59068.0,59067.0,1.3998]
[1723728234089,0.00170377,59068.0,59067.0,0.0793]
[1723728234090,0.10224039,59068.0,59067.0,0.0793]
[1723728234305,0.13420222,59068.0,59067.0,0.002]
[1723728234517,0.33002029,59068.0,59067.0,0.006]
[1723728234935,0.34045491,59068.0,59067.0,0.002]
[1723728235356,0.34445491,59068.0,59067.0,0.002]
[1723728235573,0.34345491,59068.0,59066.0,0.000825]
[1723728235801,0.32831652,59067.0,59066.0,0.000825]
[1723728238861,0.33731652,59067.0,59066.0,0.001825]
[1723728239488,0.34331652,59067.0,59066.0,0.001825]
[1723728241313,0.27049845,59067.0,59066.0,0.001825]
[1723728241515,0.14749845,59067.0,59066.0,0.145125]
[1723728241716,0.015,59067.0,59066.0,2.43560204]
[1723728241945,0.015,59067.0,59066.0,2.77420604]
[1723728242341,0.009,59067.0,59066.0,2.77420604]
[1723728242943,0.01,59067.0,59066.0,2.77420604]
[1723728243187,0.00090751,59075.0,59074.0,0.846395]
[1723728243441,0.00090751,59075.0,59074.0,1.79920754]
[1723728243672,0.00090751,59075.0,59074.0,2.13776554]
[1723728244157,0.00090861,59076.0,59075.0,1.184932]
[1723728244394,0.00090861,59076.0,59075.0,1.83393854]
[1723728244626,0.00090861,59076.0,59075.0,2.00749308]
[1723728245104,0.00090861,59076.0,59075.0,2.40749308]
[1723728245361,0.05018257,59095.0,59075.0,2.40749308]
[1723728245362,0.05018257,59095.0,59082.0,0.002]
[1723728245595,0.00090861,59096.0,59095.0,0.908995]
[1723728245812,0.00090861,59096.0,59095.0,1.49818754]
[1723728246083,0.00090861,59096.0,59095.0,1.66974208]
[1723728246304,0.00090861,59096.0,59095.0,2.01018008]
[1723728246504,0.000825,59110.0,59104.0,1.286565]
[1723728246710,0.000825,59110.0,59104.0,1.79650554]
[1723728246916,0.000825,59110.0,59104.0,1.79850554]
[1723728247124,0.000825,59110.0,59104.0,1.89914555]
[1723728247546,0.000825,59110.0,59104.0,2.23753155]
[1723728248162,0.000825,59110.0,59104.0,2.63753155]
[1723728248368,0.000825,59110.0,59104.0,2.29714555]
[1723728248832,0.01019063,59124.0,59104.0,2.29714555]
[1723728248833,0.13603829,59134.0,59107.0,0.01]
[1723728249032,0.09486327,59128.0,59118.0,0.169153]
[1723728249244,0.09486327,59128.0,59118.0,1.16081954]
[1723728249442,0.09486327,59128.0,59118.0,1.49912554]
[1723728249880,0.009086,59128.0,59118.0,1.49912554]
[1723728250085,0.009086,59128.0,59118.0,2.27022554]
[1723728250286,0.009086,59128.0,59118.0,2.78208608]
[1723728250705,0.08577727,59134.0,59125.0,0.002]
[1723728250909,0.009086,59136.0,59135.0,0.507313]
[1723728251124,0.009086,59136.0,59135.0,1.49618554]
[1723728251327,0.009086,59136.0,59135.0,1.15797654]
[1723728251536,0.009086,59136.0,59135.0,0.1409]
[1723728251742,0.009086,59136.0,59135.0,0.0791]
[1723728252379,0.009086,59136.0,59135.0,0.75796754]
[1723728252584,0.009086,59136.0,59135.0,1.15647654]
[1723728252792,0.009086,59136.0,59135.0,1.49468554]
[1723728253005,0.009086,59136.0,59135.0,2.06624008]
[1723728253215,0.009086,59136.0,59135.0,2.40444908]
[1723728253417,0.009086,59136.0,59135.0,3.66234908]
[1723728253629,0.009086,59136.0,59135.0,3.32614008]
[1723728253841,0.009086,59136.0,59135.0,3.33014008]
[1723728254278,0.009086,59136.0,59135.0,3.66834908]
[1723728254500,0.009086,59136.0,59135.0,3.66434908]
[1723728254708,0.010086,59136.0,59135.0,3.67034908]
[1723728254920,0.010086,59136.0,59135.0,3.33014008]
[1723728255125,0.010086,59136.0,59135.0,2.82037654]
[1723728255333,0.010086,59136.0,59135.0,0.4861]
[1723728255546,0.010086,59136.0,59135.0,0.407]
[1723728255749,0.010086,59136.0,59135.0,0.406]
[1723728256174,0.011086,59136.0,59135.0,0.02]
[1723728256392,0.010086,59136.0,59135.0,0.006]
[1723728256604,0.033086,59136.0,59135.0,0.006]
[1723728258123,0.032086,59136.0,59130.0,0.08]
[1723728258359,0.009086,59136.0,59130.0,0.32720494]
[1723728258601,0.009086,59136.0,59135.0,0.169104]
[1723728258814,0.009086,59136.0,59132.0,0.169112]
[1723728259018,0.010086,59136.0,59132.0,0.17155454]
[1723728259436,0.015086,59136.0,59135.0,0.169104]
[1723728259656,0.015086,59136.0,59130.0,0.08]
[1723728259657,0.032086,59136.0,59130.0,0.08]
[1723728259851,0.032086,59136.0,59124.0,0.0793]
[1723728259852,0.023,59135.0,59124.0,0.0793]
[1723728260124,0.023,59135.0,59124.0,0.25085454]
[1723728260288,0.023,59135.0,59124.0,0.42240908]
[1723728260493,0.023,59135.0,59128.0,0.169123]
[1723728260615,0.023,59135.0,59127.0,0.338254]
[1723728260826,0.023,59135.0,59125.0,0.338266]
[1723728261123,0.023,59135.0,59127.0,0.169126]
[1723728261383,0.023,59135.0,59128.0,0.169123]
[1723728261578,0.013086,59136.0,59129.0,0.338242]
[1723728261920,0.013086,59136.0,59134.0,0.169106]
[1723728262135,0.013086,59136.0,59135.0,0.169104]
[1723728262350,0.013086,59136.0,59130.0,0.34067254]
[1723728262351,0.036086,59136.0,59130.0,0.34067254]
[1723728262559,0.036086,59136.0,59130.0,0.26145755]
[1723728262764,0.036086,59136.0,59131.0,0.169115]
[1723728262972,0.014086,59136.0,59135.0,0.169104]
[1723728263174,0.014086,59136.0,59135.0,1.01707654]
[1723728263584,0.013086,59136.0,59135.0,0.67886754]
[1723728263710,0.009086,59136.0,59135.0,0.76092429]
[1723728263972,0.009086,59136.0,59135.0,1.09913329]
[1723728264564,0.009086,59136.0,59135.0,1.01707654]
[1723728264762,0.009086,59136.0,59135.0,0.67886754]
[1723728265347,0.009086,59136.0,59133.0,0.0811]
[1723728265348,0.013086,59136.0,59133.0,0.0811]
[1723728265752,0.013086,59136.0,59133.0,1.339]
[1723728266757,0.013086,59136.0,59133.0,1.2579]
[1723728266758,0.04068876,59135.0,59133.0,1.2579]
[1723728267142,0.01768876,59135.0,59134.0,0.37424454]
[1723728267348,0.013086,59136.0,59135.0,0.507313]
[1723728267554,0.009086,59136.0,59135.0,1.35528554]
[1723728268393,0.013086,59136.0,59135.0,1.35528554]
[1723728268604,0.013086,59136.0,59135.0,1.52684008]
[1723728268807,0.009086,59136.0,59135.0,1.60564008]
[1723728269213,0.009086,59136.0,59135.0,1.60664008]
[1723728269961,0.009086,59136.0,59135.0,0.0798]
[1723728270164,0.009086,59136.0,59135.0,0.587113]
[1723728270364,0.009086,59136.0,59135.0,0.248904]
[1723728270767,0.009086,59136.0,59135.0,0.75866754]
[1723728270965,0.009086,59136.0,59135.0,0.248904]
[1723728271196,0.009086,59136.0,59135.0,0.75866754]
[1723728271565,0.009086,59136.0,59135.0,2.35477654]
[1723728271968,0.009086,59136.0,59135.0,2.01656754]
[1723728272560,0.009086,59136.0,59135.0,2.35477654]
[1723728272854,0.009086,59136.0,59135.0,1.510804]
[1723728273043,0.009086,59136.0,59135.0,1.85391308]
[1723728273242,0.009086,59136.0,59135.0,2.53033108]
[1723728273446,0.009086,59136.0,59135.0,2.86854008]
[1723728274273,0.009086,59136.0,59135.0,3.20674908]
[1723728274483,0.009086,59136.0,59135.0,3.26994908]
[1723728275282,0.009086,59136.0,59135.0,3.26594908]
[1723728275488,0.009086,59136.0,59135.0,3.26494908]
[1723728275794,0.010086,59136.0,59135.0,3.27494908]
[1723728276007,0.011086,59136.0,59135.0,2.77118554]
[1723728277493,0.011086,59136.0,59135.0,2.09476754]
[1723728277699,0.011086,59136.0,59135.0,1.3527]
[1723728278595,0.010086,59136.0,59135.0,1.3467]
[1723728279038,0.010086,59136.0,59135.0,1.3437]
[1723728279475,0.010086,59136.0,59135.0,1.3477]
[1723728280564,0.010086,59136.0,59135.0,1.855013]
[1723728280777,0.010086,59136.0,59135.0,2.50096098]
[1723728281289,0.010086,59136.0,59135.0,2.02656754]
[1723728281496,0.010086,59136.0,59135.0,1.3477]
[1723728281708,0.010086,59136.0,59135.0,2.02656754]
[1723728282362,0.010086,59136.0,59135.0,1.3477]
[1723728282565,0.010086,59136.0,59135.0,1.2689]
[1723728282958,0.033086,59136.0,59135.0,1.2689]
[1723728284287,0.010086,59136.0,59135.0,1.2689]
[1723728284617,0.010086,59136.0,59135.0,1.79884465]
[1723728284985,0.010086,59136.0,59135.0,2.38910819]
[1723728285396,0.010086,59136.0,59135.0,2.78901719]
[1723728286263,0.010086,59136.0,59135.0,2.45080819]
[1723728288531,0.010086,59136.0,59135.0,2.78901719]
[1723728289625,0.010086,59136.0,59135.0,2.45080819]
[1723728290374,0.010086,59136.0,59135.0,2.78901719]
[1723728295439,0.0002,59139.0,59135.0,3.12722619]
[1723728295643,0.01768577,59149.0,59148.0,0.169067]
[1723728295849,0.01768577,59149.0,59148.0,2.39922214]
[1723728296055,0.01768577,59149.0,59148.0,2.73735614]
[1723728296265,0.01768577,59149.0,59148.0,3.07549014]
[1723728296473,0.05055733,59159.0,59158.0,0.246938]
[1723728296696,0.0002,59159.0,59158.0,0.78126334]
[1723728297121,0.0002,59159.0,59158.0,1.11934034]
[1723728297881,0.0002,59159.0,59158.0,1.12034034]
[1723728298129,0.0002,59159.0,59158.0,0.44418634]
[1723728298558,0.0002,59159.0,59158.0,0.0789]
[1723728299598,0.0002,59159.0,59158.0,0.0799]
[1723728299798,0.0002,59159.0,59158.0,0.81996954]
[1723728300005,0.0002,59159.0,59158.0,2.39297914]
[1723728300209,0.0002,59159.0,59158.0,2.05390214]
[1723728300426,0.0002,59159.0,59158.0,1.49138714]
[1723728301053,0.0002,59159.0,59158.0,1.66042514]
[1723728301498,0.0002,59159.0,59158.0,1.99850214]
[1723728301939,0.0002,59159.0,59158.0,1.65842514]
[1723728302129,0.0002,59159.0,59158.0,1.3138326]
[1723728302553,0.0022,59159.0,59158.0,1.48538714]
[1723728302962,0.0002,59159.0,59158.0,1.3138326]
[1723728303173,0.001025,59159.0,59158.0,1.3178326]
[1723728304011,0.001025,59159.0,59158.0,1.65842514]
[1723728304222,0.004025,59159.0,59158.0,1.99650214]
[1723728304860,0.001025,59159.0,59158.0,2.33457914]
[1723728305068,0.001025,59159.0,59158.0,2.16805668]
[1723728305487,0.001025,59159.0,59158.0,2.50613368]
[1723728305931,0.001025,59159.0,59158.0,2.84421068]
[1723728306138,0.001025,59159.0,59158.0,2.50613368]
[1723728306349,0.001025,59159.0,59158.0,1.65842514]
[1723728306556,0.001025,59159.0,59158.0,1.48938714]
[1723728306847,0.001025,59159.0,59158.0,1.3178326]
[1723728307062,0.001025,59159.0,59158.0,0.004]
[1723728307321,0.08680227,59159.0,59158.0,0.004]
[1723728307551,0.2599977,59159.0,59155.0,1.2359326]
[1723728308050,0.2599977,59159.0,59148.0,0.4686]
[1723728308051,0.507141,59155.0,59154.0,1.2359326]
[1723728308296,0.09269543,59155.0,59154.0,1.2359326]
[1723728308519,0.334547,59155.0,59154.0,1.2359326]
[1723728308726,1.010735,59155.0,59154.0,1.2359326]
[1723728308929,0.94224881,59155.0,59154.0,1.2359326]
[1723728309140,0.43510781,59155.0,59154.0,1.2359326]
[1723728310023,0.43510781,59155.0,59143.0,0.0829]
[1723728310224,0.05022187,59151.0,59143.0,0.0829]
[1723728310445,0.05022187,59151.0,59143.0,0.21478326]
[1723728310663,0.023,59150.0,59143.0,0.21478326]
[1723728311300,0.023,59150.0,59143.0,0.0829]
[1723728311971,0.01768242,59149.0,59143.0,0.0839]
[1723728312187,0.023,59148.0,59143.0,0.0829]
[1723728312601,0.023,59148.0,59143.0,0.0839]
[1723728312807,0.023,59148.0,59143.0,0.0829]
[1723728313230,0.023,59148.0,59144.0,1.2359326]
[1723728313453,0.03337096,59148.0,59144.0,1.2359326]
[1723728313874,0.13337096,59148.0,59144.0,1.2359326]
[1723728314081,0.18357149,59148.0,59145.0,0.13188326]
[1723728314288,0.17320053,59148.0,59144.0,1.2359326]
[1723728314782,0.123,59148.0,59144.0,1.2359326]
[1723728315036,0.123,59148.0,59146.0,0.0833]
[1723728315037,0.001,59148.0,59146.0,0.0833]
[1723728315293,0.001,59148.0,59147.0,0.82816454]
[1723728315536,0.01768242,59149.0,59148.0,1.332869]
[1723728315764,0.00826,59165.0,59158.0,0.845192]
[1723728315971,0.00826,59165.0,59158.0,1.16614654]
[1723728316229,0.00826,59165.0,59158.0,1.17768183]
[1723728316493,0.00826,59165.0,59158.0,2.73400901]
[1723728316743,0.00826,59165.0,59158.0,3.24364055]
[1723728317182,0.00826,59165.0,59158.0,2.90556355]
[1723728318271,0.002025,59159.0,59158.0,2.91856355]
[1723728318924,0.002025,59159.0,59158.0,2.92856355]
[1723728321084,0.002025,59159.0,59158.0,3.22516355]
[1723728322175,0.00826,59165.0,59160.0,1.21622518]
[1723728322384,0.00826,59165.0,59158.0,1.47842137]
[1723728322385,0.00826,59165.0,59164.0,0.507064]
[1723728322593,0.00826,59165.0,59164.0,1.43570454]
[1723728322801,0.00826,59165.0,59164.0,1.44711322]
[1723728323020,0.00826,59165.0,59164.0,3.3605814]
[1723728323236,0.00826,59165.0,59164.0,3.7625814]
[1723728323455,0.00826,59165.0,59164.0,3.63553594]
[1723728323670,0.00826,59165.0,59164.0,3.97357894]
[1723728323878,0.00826,59165.0,59164.0,3.97557894]
[1723728324294,0.00826,59165.0,59164.0,3.64759082]
[1723728324833,0.00826,59165.0,59164.0,3.68152082]
[1723728325312,0.00826,59165.0,59164.0,3.64759082]
[1723728325552,0.00826,59165.0,59164.0,3.66159082]
[1723728325772,0.00826,59165.0,59164.0,3.64759082]
[1723728326018,0.00826,59165.0,59164.0,3.66159082]
[1723728326255,0.00826,59165.0,59164.0,3.69552082]
[1723728326499,0.00826,59165.0,59164.0,3.68152082]
[1723728326743,0.00826,59165.0,59164.0,3.70752082]
[1723728326990,0.00826,59165.0,59164.0,3.67359082]
[1723728327232,0.00826,59165.0,59164.0,3.1539384]
[1723728328063,0.00826,59165.0,59164.0,3.1259384]
[1723728328262,0.00826,59165.0,59164.0,3.1399384]
[1723728328468,0.00826,59165.0,59164.0,3.1539384]
[1723728328675,0.00826,59165.0,59164.0,3.31149294]
[1723728328880,0.00826,59165.0,59164.0,3.29749294]
[1723728329086,0.00826,59165.0,59164.0,2.91149294]
[1723728329299,0.00826,59165.0,59164.0,3.26353594]
[1723728329509,0.0002,59179.0,59178.0,0.844907]
[1723728329725,0.0002,59179.0,59178.0,2.45101742]
[1723728329930,0.0002,59179.0,59178.0,2.80020895]
[1723728332014,0.0002,59179.0,59178.0,3.20020895]
[1723728332807,0.0002,59179.0,59178.0,3.21420895]
[1723728333017,0.0002,59179.0,59178.0,2.81420895]
[1723728333217,0.0002,59179.0,59178.0,2.81120895]
[1723728333674,0.0002,59179.0,59178.0,2.82420895]
[1723728334145,0.0427,59179.0,59178.0,0.88013553]
[1723728334350,0.0427,59179.0,59178.0,0.03522853]
[1723728334351,1.37874654,59179.0,59178.0,0.03522853]
[1723728334789,1.37874654,59179.0,59177.0,0.4]
[1723728334790,1.18287,59178.0,59177.0,0.29323629]
[1723728334998,1.18287,59178.0,59154.0,0.0757]
[1723728334999,0.55091443,59178.0,59154.0,0.0757]
[1723728335218,0.16901,59168.0,59165.0,0.51466362]
[1723728335423,0.16901,59168.0,59152.0,0.169055]
[1723728335424,0.169022,59164.0,59149.0,0.1699694]
[1723728335638,0.123,59167.0,59149.0,0.1699694]
[1723728335639,0.169039,59158.0,59149.0,0.0009064]
[1723728335846,0.169031,59161.0,59149.0,0.0009064]
[1723728336052,0.023,59160.0,59149.0,0.0009064]
[1723728336262,0.023,59160.0,59150.0,0.17155454]
[1723728336488,0.169027,59162.0,59150.0,0.17155454]
[1723728336489,0.023,59161.0,59150.0,0.17155454]
[1723728336906,0.1,59163.0,59150.0,0.20803993]
[1723728337115,0.18577727,59171.0,59151.0,0.0781]
[1723728337333,0.023,59169.0,59152.0,0.46815454]
[1723728337543,0.023,59170.0,59153.0,0.0781]
[1723728337757,0.123,59174.0,59161.0,0.169027]
[1723728337965,0.123,59174.0,59154.0,0.17155454]
[1723728337966,0.08577727,59169.0,59154.0,0.17155454]
[1723728338173,0.169013,59167.0,59154.0,0.17155454]
[1723728338377,0.168998,59173.0,59154.0,0.25088513]
[1723728338583,0.37777727,59172.0,59156.0,0.507129]
[1723728338787,0.16901,59168.0,59156.0,0.17155454]
[1723728339220,0.16901,59168.0,59150.0,0.0009064]
[1723728339221,0.08577727,59158.0,59150.0,0.0009064]
[1723728339637,0.08577727,59164.0,59150.0,0.0009064]
[1723728339638,0.023,59157.0,59152.0,0.001]
[1723728340012,0.169036,59159.0,59150.0,0.0019064]
[1723728340013,0.023,59158.0,59150.0,0.0009064]
[1723728340494,0.08577727,59157.0,59156.0,0.001]
[1723728340709,0.08577727,59157.0,59150.0,0.0009064]
[1723728340710,0.361083,59157.0,59150.0,0.0009064]
[1723728340924,0.269046,59156.0,59150.0,0.0009064]
[1723728341132,0.023,59155.0,59152.0,0.001]
[1723728341343,0.023,59155.0,59150.0,0.0019064]
[1723728341965,0.030104,59154.0,59150.0,0.0019064]
[1723728342169,0.023,59153.0,59150.0,0.0019064]
[1723728342577,0.109,59158.0,59150.0,0.0019064]
[1723728342578,0.023,59157.0,59150.0,0.0019064]
[1723728342791,0.023,59157.0,59150.0,0.0009064]
[1723728343627,0.011,59158.0,59151.0,1.45681972]
[1723728343830,0.006,59153.0,59152.0,0.169055]
[1723728344044,0.006,59153.0,59152.0,0.34060954]
[1723728344456,0.023,59161.0,59152.0,0.17155454]
[1723728344670,0.005,59157.0,59153.0,0.17155454]
[1723728344879,0.023,59156.0,59151.0,1.28526518]
[1723728345510,0.023,59156.0,59151.0,1.20796518]
[1723728346190,0.023,59158.0,59151.0,1.20796518]
[1723728346395,0.023,59158.0,59152.0,0.001]
[1723728346600,0.05111665,59158.0,59152.0,0.001]
[1723728346803,0.05111665,59158.0,59151.0,1.20796518]
[1723728347016,0.003,59156.0,59151.0,1.20796518]
[1723728347217,0.023,59155.0,59151.0,1.20796518]
[1723728347921,0.002,59153.0,59152.0,2.70710572]
[1723728348131,0.07516494,59172.0,59152.0,2.70710572]
[1723728348132,0.10345651,59171.0,59164.0,0.0829]
[1723728348337,0.01767924,59171.0,59165.0,1.20796518]
[1723728349195,0.25733181,59170.0,59165.0,1.20796518]
[1723728349406,0.845077,59166.0,59165.0,1.20796518]
[1723728349611,0.945077,59166.0,59165.0,1.20796518]
[1723728349816,0.607046,59166.0,59165.0,1.20796518]
[1723728350233,0.630046,59166.0,59165.0,1.20796518]
[1723728350455,0.630046,59166.0,59165.0,1.20896518]
[1723728350863,0.630046,59166.0,59165.0,1.20796518]
[1723728351296,0.644046,59166.0,59165.0,1.20896518]
[1723728351509,0.655046,59166.0,59165.0,1.20996518]
[1723728351730,0.644046,59166.0,59165.0,1.20896518]
[1723728351949,0.644046,59166.0,59165.0,0.001]
[1723728352152,0.655046,59166.0,59165.0,0.002]
[1723728352357,0.317015,59166.0,59165.0,0.002]
[1723728352605,0.134,59166.0,59165.0,0.001]
[1723728352813,0.111,59166.0,59165.0,0.001]
[1723728353016,0.024,59166.0,59165.0,0.0827]
[1723728353226,0.024,59166.0,59165.0,0.002]
[1723728354473,0.024,59166.0,59165.0,0.1412]
[1723728354893,0.024,59166.0,59165.0,0.310218]
[1723728355365,0.013,59166.0,59165.0,0.309218]
[1723728355804,0.013,59166.0,59165.0,0.310218]
[1723728355805,0.024,59166.0,59165.0,0.310218]
[1723728355982,0.011,59166.0,59165.0,0.309218]
[1723728356436,0.021,59166.0,59165.0,0.310218]
[1723728357046,0.021,59166.0,59165.0,0.309218]
[1723728357047,0.011,59166.0,59165.0,0.309218]
[1723728357320,0.15010996,59177.0,59165.0,0.311218]
[1723728357553,0.023,59176.0,59166.0,0.169014]
[1723728358063,0.023,59176.0,59166.0,1.20796518]
[1723728358300,0.08577727,59172.0,59166.0,1.20796518]
[1723728358519,0.023,59171.0,59166.0,1.20796518]
[1723728358730,0.123,59171.0,59166.0,1.20796518]
[1723728358938,0.123,59171.0,59166.0,1.20896518]
[1723728359181,0.123,59171.0,59166.0,1.37797918]
[1723728359399,0.123,59171.0,59166.0,1.20896518]
[1723728359612,0.123,59171.0,59166.0,1.37798018]
[1723728360025,0.023,59171.0,59166.0,1.37798018]
[1723728360252,0.009,59176.0,59169.0,0.0828]
[1723728360457,0.051067,59179.0,59174.0,0.0828]
[1723728360458,0.01,59177.0,59174.0,0.0828]
[1723728361096,0.001024,59179.0,59178.0,0.33584186]
[1723728361303,0.001024,59179.0,59178.0,0.8123774]
[1723728361768,0.05002083,59207.0,59201.0,0.506748]
[1723728362001,0.00825,59215.0,59201.0,1.35818]
[1723728362231,0.02592021,59215.0,59208.0,1.553072]
[1723728362439,0.00825,59215.0,59214.0,1.182149]
[1723728362649,0.00825,59215.0,59214.0,1.86813563]
[1723728363126,0.00845,59219.0,59218.0,1.521807]
[1723728363331,0.0054163,59235.0,59218.0,1.521807]
[1723728363332,0.0054163,59235.0,59234.0,0.31057495]
[1723728363540,0.0054163,59235.0,59234.0,1.52821549]
[1723728363757,0.0054163,59235.0,59234.0,1.86585849]
[1723728363967,0.0004163,59235.0,59234.0,1.98089413]
[1723728364381,0.0004163,59235.0,59234.0,2.02530175]
[1723728364606,0.0004163,59235.0,59234.0,1.98089413]
[1723728365030,0.0014163,59235.0,59234.0,1.99389413]
[1723728365239,0.0024163,59235.0,59234.0,2.00789413]
[1723728365449,0.0014163,59235.0,59234.0,1.99489413]
[1723728365659,0.0024163,59235.0,59234.0,2.00789413]
[1723728365864,0.0014163,59235.0,59234.0,1.99489413]
[1723728366286,0.0014163,59235.0,59234.0,0.48292736]
[1723728366492,0.0014163,59235.0,59227.0,0.3708]
[1723728366493,0.0004163,59235.0,59227.0,0.3708]
[1723728366701,0.08577727,59233.0,59227.0,0.17155454]
[1723728366882,0.08577727,59233.0,59228.0,0.168837]
[1723728367127,0.0014163,59235.0,59228.0,0.337676]
[1723728367338,0.0014163,59235.0,59234.0,0.168821]
[1723728367555,0.0014163,59235.0,59234.0,0.35437554]
[1723728367768,0.0014163,59235.0,59234.0,0.69201854]
[1723728367999,0.0014163,59235.0,59234.0,1.01566154]
[1723728368000,0.0004163,59235.0,59234.0,1.01566154]
[1723728368202,0.0004163,59235.0,59234.0,1.48802769]
[1723728368630,0.0004163,59235.0,59234.0,0.17155454]
[1723728368844,0.0004163,59235.0,59228.0,0.168836]
[1723728369051,0.0004163,59235.0,59226.0,0.0608]
[1723728369052,0.0004163,59235.0,59229.0,0.17155454]
[1723728369273,0.0014163,59235.0,59234.0,0.011]
[1723728369705,0.3390543,59235.0,59234.0,0.011]
[1723728369925,0.54597559,59235.0,59234.0,0.011]
[1723728370177,1.00661359,59235.0,59234.0,0.011]
[1723728370518,0.66897559,59235.0,59234.0,0.011]